Cogmind - Beta 13 @@@ ROGUE MODE // 2024.04.06 @ 20:14:18 Player: kayghar Result: Destroyed by Y-45 Defender with Heavy Assault Rifle Performance ------------- Evolutions (1) 500 Regions Visited (2) 400 Robots Destroyed (21) 105 Value Destroyed (393) 393 Prototype IDs (0) 0 Alien Tech Used (0) 0 Bonus (0) 0 TOTAL SCORE: 1398 Bonus ------- None Cogmind --------- Core Integrity 0/400 Matter 257/300 Energy 100/100 System Corruption 1% Temperature Cool (15) Movement Core (700) Ox13 Location -9/Materials Parts ------- > --- POWER (1) -------- (None) > --- PROPULSION (2) --- (None) > --- UTILITY (3) ------ High-capacity Storage Unit Visual Processing Unit > --- WEAPON (3) ------- (None) > --- INVENTORY (20) --- Medium Storage Unit Large Storage Unit Large Storage Unit ECM Suite Peak State ------------ > --- POWER ------------ Ion Engine > --- PROPULSION ------- Armored Wheel Armored Wheel > --- UTILITY ---------- Large Storage Unit Visual Processing Unit Targeting Computer > --- WEAPON ----------- EM Pulse Gun Light EM Pulse Cannon Assault Rifle > --- INVENTORY -------- Light Ion Engine Medium Storage Unit Large Storage Unit ECM Suite [Rating: 13] Favorites ----------- Power Ion Engine Engine Ion Engine Propulsion Aluminum Leg Leg Aluminum Leg Wheel Armored Wheel Utility Targeting Computer Device ECM Suite Storage Large Storage Unit Processor Targeting Computer Weapon Assault Rifle Energy Gun EM Pulse Gun Energy Cannon Light EM Pulse Cannon Ballistic Gun Assault Rifle Launcher Grenade Launcher Build | -11 -10 -9 ------- Run | Yrd Mat Mat Slots Evolved 2 | . . 2 Power . | . . . Propulsion . | . . . Utility 1 | . . 1 Weapon 1 | . . 1 Parts Attached 23 | 6 10 7 Power 4 | 1 1 2 Engine 4 | 1 1 2 Core . | . . . Reactor . | . . . Propulsion 5 | 3 2 . Treads . | . . . Leg 2 | 2 . . Wheel 3 | 1 2 . Hover . | . . . Flight . | . . . Utility 7 | . 4 3 Device 2 | . 1 1 Storage 2 | . 1 1 Processor 3 | . 2 1 Hackware . | . . . Protection . | . . . Artifact . | . . . Weapon 7 | 2 3 2 Energy Gun 2 | 1 . 1 Energy Cannon 1 | . 1 . Ballistic Gun 2 | 1 . 1 Ballistic Cannon . | . . . Launcher 2 | . 2 . Special Weapon . | . . . Impact Weapon . | . . . Slashing Weapon . | . . . Piercing Weapon . | . . . Special Melee Weapon . | . . . Unidentified Prototypes . | . . . Parts Lost 11 | . 2 9 Power 2 | . . 2 Propulsion 3 | . 1 2 Utility 1 | . . 1 Weapon 5 | . 1 4 Highest Loss Streak 8 | . 1 8 To Critical Strikes . | . . . Average Slot Usage (%) 92 | . 93 90 Engine 12 | . 14 9 Leg 17 | . 25 . Wheel 8 | . 2 20 Device 6 | . 9 1 Storage 3 | . . 11 Processor 15 | . 13 19 Energy Gun 3 | . . 9 Energy Cannon 3 | . 1 8 Ballistic Gun 13 | . 14 11 Launcher 7 | . 10 . Naked Turns . | . . . Heaviest Build 53 | 7 31 53 Greatest Support 24 | 20 24 24 Greatest Overweight (x) 14 | . 1 14 Average Overweight (x) . | . . 1 Largest Inventory Capacity 20 | 5 15 20 Average Capacity 8 | 5 5 16 Most Carried 6 | 5 5 6 Average Carried 3 | 2 3 4 Final Capacity 20 | 5 15 20 Final Carried 5 | 2 5 4 Class Distribution -------------------- 77% | Mutant 22% | Gunner Dominant Class ---------------- Mutant | -10/Materials Gunner | -9/Materials Resources | -11 -10 -9 ----------- Run | Yrd Mat Mat Matter Collected 524 | 266 89 169 Remotely . | . . . Salvage Created 354 | 41 181 132 Parts 39 | 1 21 17 Haulers Intercepted . | . . . Recyclers Shooed . | . . . Parts Field Recycled . | . . . Retrieved Matter . | . . . Parts Self-Destructed . | . . . Prevented . | . . . Kills | -11 -10 -9 ------- Run | Yrd Mat Mat Combat Hostiles Destroyed 13 | 1 8 4 Guns 4 | 1 2 1 Cannons 1 | . 1 . AOE 8 | . 5 3 Classes Destroyed 6 | 1 4 1 Worker 2 | . 1 1 Builder 2 | . . 2 Operator 1 | . 1 . Watcher 3 | . 2 1 Swarmer 7 | . 3 4 Grunt 6 | 1 5 . Best Kill Streak 8 | 1 5 8 Combat Bots Only 4 | 1 3 4 Max Kills in Single Turn 4 | 1 4 4 Gunslinging . | . . . Exploded 2 | . 2 2 Melee . | . . . Uniques/NPCs Destroyed . | . . . Combat | -11 -10 -9 -------- Run | Yrd Mat Mat Hostile Shots Fired 146 | 3 38 105 Missed 36 | 1 14 21 Damage Taken 1350 | 24 266 1060 Core 461 | 12 47 402 Absorbed by Shields . | . . . Regen/Repaired (Parts) 21 | . . 21 Core Remaining (%) 85 | 95 76 . Volleys Fired 36 | 2 23 11 Largest 3 | 2 2 3 Hottest 116 | 60 76 116 Shots Fired 71 | 4 36 31 Gun 53 | 4 23 26 Cannon 8 | . 3 5 Launcher 10 | . 10 . Special . | . . . Kinetic 40 | 2 23 15 Thermal . | . . . Explosive 10 | . 10 . Electromagnetic 21 | 2 3 16 Robot Hit Streak 9 | 1 9 4 Robot Miss Streak 3 | 1 3 3 Penetration Max . | . . . Secondary Targets . | . . . Shots Hit Robots 33 | 2 19 12 Core Hits 31 | 2 18 11 Critical Kills . | . . . Critical Parts Destroyed . | . . . Critical Strikes . | . . . Melee Attacks . | . . . Impact . | . . . Slashing . | . . . Piercing . | . . . Sneak Attacks . | . . . Combat Hostiles . | . . . Follow-up Attacks . | . . . Damage Inflicted 1183 | 23 770 390 Guns 327 | 23 155 149 Cannons 112 | . 45 67 Explosions 736 | . 570 166 Melee . | . . . Ramming 8 | . . 8 Kinetic 251 | 23 155 73 Thermal 166 | . . 166 Explosive 570 | . 570 . Electromagnetic 188 | . 45 143 Impact . | . . . Slashing . | . . . Piercing . | . . . Highest Corruption 1 | . . 1 Average Corruption 1 | . . 1 Corruption Purged . | . . . Corruption Blocked . | . . . Overload Shots . | . . . Overflow Damage . | . . . Projectiles . | . . . Explosions . | . . . Melee . | . . . Knockbacks . | . . . Impact . | . . . Kinetic . | . . . Secondary . | . . . Self-Inflicted Damage 3 | . . 3 Shots . | . . . Rammed 5 | . . 5 Targets Rammed 5 | . . 5 Kicked . | . . . Crushed . | . . . Highest Temperature 133 | 6 50 133 Average Temperature 32 | 6 15 44 Received Heat Transfer 555 | 12 138 405 Siege Activations . | . . . Robots Corrupted . | . . . Combat Hostiles . | . . . Parts Fried . | . . . Impact Corruptions . | . . . Robots Melted . | . . . Combat Hostiles . | . . . Parts Melted . | . . . Heat Transferred 200 | . . 200 Parts Sabotaged . | . . . Parts Stolen . | . . . Parts Stripped . | . . . Power Chain Reactions 2 | . . 2 Alert | -11 -10 -9 ------- Run | Yrd Mat Mat Peak Influence 220 | 20 220 198 Initial 34 | . 13 34 Average 53 | 7 51 87 Maximum Alert Level 1 | . 1 . Low Security (%) 95 | 100 92 100 Level 1 4 | . 7 . Level 2 . | . . . Level 3 . | . . . Level 4 . | . . . Level 5 . | . . . High Security . | . . . Max Security . | . . . Squads Dispatched 3 | . 2 1 Investigation 2 | . 1 1 Extermination . | . . . Reinforcement 1 | . 1 . Assault . | . . . Garrison . | . . . Intercept . | . . . Searches Triggered . | . . . Construction Impeded . | . . . Haulers Reinforced . | . . . Active Scanning Responses . | . . . Cargo Convoy Interrupts . | . . . Stealth | -11 -10 -9 --------- Run | Yrd Mat Mat Distress Signals 3 | . 2 1 Communications Jammed . | . . . Distress Signals . | . . . Times Spotted 24 | 1 11 12 Peak Tracking Total 6 | 1 4 6 Tactical Retreats 1 | . 1 . Traps | -11 -10 -9 ------- Run | Yrd Mat Mat Traps Triggered 2 | . 2 . Indirectly . | . . . Trap Hack Attempts . | . . . Triggered . | . . . Disarmed . | . . . Reprogrammed . | . . . Reused . | . . . Traps Extracted . | . . . Installed . | . . . Triggered . | . . . Machines | -11 -10 -9 ---------- Run | Yrd Mat Mat Machines Disabled 3 | . 2 1 Max in Single Turn 1 | . 1 1 Machines Repaired . | . . . Machines Dismantled . | . . . Machines Sabotaged . | . . . Overloaded Fab Kills . | . . . Hacking | -11 -10 -9 --------- Run | Yrd Mat Mat Machines Accessed 6 | . 3 3 Terminals 4 | . 2 2 Fabricators . | . . . Repair Stations 1 | . . 1 Recycling Units 1 | . 1 . Scanalyzers . | . . . Garrison Access . | . . . Total Hacks 23 | . 15 8 Successful 14 | . 8 6 Failed 8 | . 6 2 Catastrophic . | . . . Database Lockouts 1 | . 1 . Manual . | . . . Terminals 16 | . 12 4 Fabricators . | . . . Repair Stations 4 | . . 4 Recycling Units 3 | . 3 . Scanalyzers . | . . . Garrison Access . | . . . Terminal Hacks 10 | . 7 3 Record 4 | . 4 . Alert Level 4 | . 3 1 Locate Traps 1 | . . 1 Reinforcement Status 1 | . . 1 Fabricator Hacks . | . . . Repair Station Hacks 3 | . . 3 Scan Component 2 | . . 2 Repair 1 | . . 1 Recycling Unit Hacks 1 | . 1 . Retrieve Components 1 | . 1 . Scanalyzer . | . . . Garrison Access Hacks . | . . . Unauthorized Hacks . | . . . Terminals . | . . . Fabricators . | . . . Repair Stations . | . . . Recycling Units . | . . . Scanalyzers . | . . . Garrison Access . | . . . Data Cores Recovered . | . . . Used . | . . . Hacking Detections 4 | . 2 2 Full Trace Events 1 | . . 1 Feedback Events . | . . . Feedback Blocked . | . . . Robot Schematics Acquired . | . . . Robots Built . | . . . Authchips . | . . . Time . | . . . Total Robot Build Rating . | . . . Part Schematics Acquired . | . . . Parts Built . | . . . Authchips . | . . . Time . | . . . Total Part Build Rating . | . . . Parts Repaired 1 | . . 1 Time 26 | . . 26 Parts Recycled . | . . . Recycled Matter . | . . . Retrieved Matter . | . . . Retrieved Components 7 | . 7 . Parts Scanalyzed . | . . . Part Schematics Acquired . | . . . Parts Damaged . | . . . Bothacking | -11 -10 -9 ------------ Run | Yrd Mat Mat Used RIF Installer . | . . . Robots Hacked . | . . . Non-combat . | . . . Combat . | . . . Robot Hacks Applied . | . . . Relay Couplers Released . | . . . Fabnet Peak Effective % . | . . . Robots Rewired . | . . . Allies Hacked . | . . . Hacks Repelled . | . . . Allies | -11 -10 -9 -------- Run | Yrd Mat Mat Total Allies . | . . . Largest Group . | . . . Highest-Rated Group . | . . . Highest-Rated Ally . | . . . Total Orders . | . . . Ally Attacks . | . . . Total Damage . | . . . Kills . | . . . Allies Corrupted . | . . . Allies Melted . | . . . Intel | -11 -10 -9 ------- Run | Yrd Mat Mat Robot Analysis Total . | . . . Derelict Logs Recovered . | . . . Drone Launches . | . . . Drone Recoveries . | . . . Exploration | -11 -10 -9 ------------- Run | Yrd Mat Mat Turns Passed 942 | 155 533 254 Spaces Moved 699 | 144 382 173 Core 39 | 38 . 1 Treads . | . . . Legs 421 | 81 340 . Wheels 239 | 25 42 172 Hover . | . . . Flight . | . . . Fastest Speed 50 | 50 90 105 Average Speed 111 | 94 117 110 Slowest Speed 750 | 120 120 750 Overloaded Moves . | . . . Propulsion Burnouts . | . . . Robots Hopped . | . . . Cave-ins Triggered . | . . . Exploration Rate (%) 23 | 9 46 15 Regions Visited 2 Branch Regions . Pre-discovered Areas . | . . . Known Exits Taken . | . . . Unknown Exits Taken 2 | 1 1 . Scrap Searched . | . . . Spaces Dug . | . . . Terrain Destroyed 38 | . 34 4 Melee . | . . . Projectile . | . . . AOE 38 | . 34 4 Terrain Rammed . | . . . Walls Destroyed . | . . . Machines Disabled . | . . . Actions | -11 -10 -9 --------- Run | Yrd Mat Mat Total 793 | 158 433 202 Wait 2 | . . 2 Move 697 | 143 381 173 Hop . | . . . Pick Up 23 | 7 12 4 Fast Attach . | . . . Attach 19 | 5 9 5 Detach 4 | . 4 . Swap 4 | 1 1 2 Drop 3 | . 3 . Fire 36 | 2 23 11 Melee . | . . . Ram 5 | . . 5 Kick . | . . . Crush . | . . . Escape Stasis . | . . . Rewire . | . . . Trap . | . . . Miscellaneous . | . . . Route ------- -11/Scrapyard -10/Materials -9/Materials History --------- Turn | Location | Event 2 | -11/Scrapyard | Met Revision 17 89 | -11/Scrapyard | Discovered new exit (range 8) 156 | -11/Scrapyard | Entered Materials 269 | -10/Materials | Central database locked down 317 | -10/Materials | Build established: Mutant 611 | -10/Materials | Discovered new exit (range 16) 689 | -10/Materials | Entered another Materials area 689 | -9/Materials | Evolved 2 slots: Utility x1, Weapon x1 816 | -9/Materials | Repaired Ion Engine 935 | -9/Materials | Core integrity fell below 50% 942 | -9/Materials | Core integrity fell below 20% 943 | -9/Materials | Destroyed by Y-45 Defender with Heavy Assault Rifle Last Messages --------------- Slammed into Y-45 Defender. Destabilizing: Core damaged (-4). U-05 Engineer lays Concrete. Arm. Wheel destroyed. Slammed into G-47 Trooper. K-01 Serf collects debris. T-07 Excavator is excavating. U-05 Engineer lays Concrete. R-06 Scavenger collects Wheel. Arm. Wheel destroyed. K-01 Serf collects debris. Lgt. Ion Engine destroyed. Slammed into G-34 Mercenary. K-01 Serf collects debris. Slammed into Y-45 Defender. Destabilizing: System corrupted (+1). G-47 Trooper destroyed. K-01 Serf collects debris. T-07 Excavator is excavating. [Achievement: First Step to Greatness] Map ----- +----------------------------------------------------+ | ?????????????# #?????????# #???????????????????? | | ?????????????# #?????????# #???????????????????? | | ?????????????# #?????????# #???????????????????? | | ?????????????# #??#####??# #???????????????????? | | ?????????????# #??#"""#??# #???????????????????? | | ???????????### ####"T"#### ##??????????????????? | | ???????????# #??????????????????? | | ??????????## +??????????????????? | | ??????????#T """ """ """ #??????????????????? | | ??????????## "R" """ """ #??????????????????? | | ???????????# " " """ """ #??????????????????? | | ???????????# #??????????????????? | | ???????????# #??????????????????? | | ???????? """ """ """ #??????????????????? | | ???? """ """ """ #??????????????????? | | ? """ """ "" #??????????????????? | | ? ########## % #############??????? | | ???????????# ????? | | ???????????###+######### = ^ ????? | | ??????????????????????## = * %! ????? | | ???????????????????????# k!##"#########+### ?????? | | ???????????????????????# #######???????????????? | | ???????????????????????# u# u#???????????????? | | ???????????????????????# Y# t#???????????????? | | ???????????????????????#g%gu #????????????????? | | ???????????????????????#Y@ # # #????????????????? | | ???????????????????????# #####?????????????????? | | ???????????????????????# #?????????????????????? | | ???????????????????????# #?????????????????????? | | ???????????????????????# #?????????????????????? | | ???????????????????????# #?????????????????????? | | ???????????????????????+ #?????????????????????? | | ???????????????????????# #?????????????????????? | | ???????????????????????# #?????????????????????? | | ???????????????????????# #?????????????????????? | | ???????????????????????# #?????????????????????? | | ???????????????????????# #?????????????????????? | | ???????????????????????# #?????????????????????? | | ???????????????????????# #?????????????????????? | | ???????????????????????# #?????????????????????? | | ???????????????????????# k??????????????????????? | | ???????????????????????# k??????????????????????? | | ???????????????????????? ??????????????????????? | | ???????????????????????? ??????????????????????? | | ?????????????????????????????????????????????????? | | ?????????????????????????????????????????????????? | | ?????????????????????????????????????????????????? | | ?????????????????????????????????????????????????? | | ?????????????????????????????????????????????????? | | ?????????????????????????????????????????????????? | +----------------------------------------------------+ Best States ------------- Heat Dissipation 28 Energy Generation 10 Energy Capacity 250 Matter Stores 300 Matter Capacity 300 Sight Range 18 Terrain Scan Density 10 ECM Strength 1 Evasion (%) 55 Targeting Accuracy 10 Item Schematics ----------------- None Robot Schematics ------------------ None Fabricated ------------ Nothing Alien Tech Used ----------------- None Achievements -------------- First Step to Greatness One Hack Too Far Part-time Mechanic Uninvited Guest Challenges ------------ None Game ------ Seed ImprovedWaveFlightbrick Manual? 0 Play Time 00:28:56 Cumulative 0.4 hours Start 2024.04.06 @ 19:41:13 End 2024.04.06 @ 20:14:18 Sessions 1 Manual Loads 0 Difficulty Rogue Special Mode None Game No. 1 Rogue 1 Adventurer 0 Explorer 0 Win Type - Total 0 Types 0/0/0/0/0/0/0/0/0 Lore% 0 Gallery% 1 Achievement% 1 Wizard Run 0 Options --------- Layout 1 ASCII 0 Keyboard 0 Movement Mouse Keybinds 0 Fullscreen 1 Font 24/X11 Map View 50x35 Zoom Use 1% Tactical HUD 0 Map Filters NONE Filters NONE Steam 0 RUN: ca286d97-8325-4d0a-b0cd-01571f8bc3af